{"text_format":"1","workbook":"xlsx","n_sheets":8,"sheets":["INF. CONAC","Ejercicio y Destino GFyR","Prog y Proy de Inv","Anexo 1","Anexo 2","Gto Sector Púb Clasif Econ","JUSTIFICACIÓN (CLASIF ECON)","Jus. Gto Sector Púb Clasif Econ"],"not_rendered":{"charts":0,"images":3,"macros":0,"external_links":0,"defined_names":13,"comments":0,"pivot_tables":0},"unopened":[],"bounds":{"document_bytes":16777216,"sheet_cells":100000,"rows_first":2000,"rows_last":500,"rows_between":2000,"halvings":0,"cell_chars":16384,"cell_head_chars":4096},"cells_cut":0,"cells_raw":0,"read":"whole","date_system":"1900"}

{"sheet":"INF. CONAC","index":0,"n_rows":0,"n_cols":0,"rows_kept":0,"cut":false,"hidden":true,"merged":[]}

{"sheet":"Ejercicio y Destino GFyR","index":1,"n_rows":5,"n_cols":7,"rows_kept":5,"cut":false,"hidden":true,"merged":[[0,0,0,6],[2,0,3,2],[2,3,3,3],[2,4,2,5],[2,6,3,6]]}
["ENTIDAD FEDERATIVA: CHIAPAS\nFORMATO DEL EJERCICIO Y DESTINO DE GASTO FEDERALIZADO Y REINTEGRO\nAL PERIODO: 2o Trimestre 2017"]
["2111 111 0 SECRETARÍA DE HACIENDA"]
["PROGRAMA O FONDO",null,null,"DESTINO DE LOS RECURSOS","EJERCICIO",null,"REINTEGRO"]
[null,null,null,null,"DEVENGADO","PAGADO"]
["5933","01","Proyecto de Desarrollo Regional. Ramo 23 - U128","Tuxtla Gutiérrez.",{"$f":"SUMIFS(EP01_PRESUPUESTO_DEVENGADO,EP01_FF,$A5,EP01_DG,$B5)","v":{"$error":"#NAME?"}},{"$f":"SUMIFS(EP01_PRESUPUESTO_PAGADO,EP01_FF,$A5,EP01_DG,$B5)","v":{"$error":"#NAME?"}},{"$f":"SUMIFS(EP01_SUBEJERCICIO,EP01_FF,$A5,EP01_DG,$B5)","v":{"$error":"#NAME?"}}]

{"sheet":"Prog y Proy de Inv","index":2,"n_rows":19,"n_cols":8,"rows_kept":19,"cut":false,"hidden":false,"merged":[[18,0,18,7],[0,0,1,0],[0,1,1,1],[0,2,1,2],[0,3,0,6],[0,7,1,7]]}
["PP","PROGRAMA PRESUPUESTARIO / PROYECTO ESTRATÉGICO","MUNICIPIO / COBERTURA","EGRESOS",null,null,null,"AVANCE %\nDEVENGADO/\nMODIFICADO"]
[null,null,null,"APROBADO","MODIFICADO","DEVENGADO","PAGADO"]
[]
[]
[]
[]
[]
[]
[]
[]
[]
[]
[]
[]
[]
[]
[]
[]
["NO APLICA"]

{"sheet":"Anexo 1","index":3,"n_rows":21,"n_cols":7,"rows_kept":21,"cut":false,"hidden":true,"merged":[[0,0,0,6],[2,0,2,1]]}
["INTEGRACIÓN DE LAS ECONOMÍAS Y/O AHORROS PRESUPUESTALES\nAL CIERRE DEL EJERCICIO 2016"]
["2111 111 0 SECRETARÍA DE HACIENDA"]
["CONCEPTO",null,"DISPONIBLE\nPRESUPUESTARIO\n1","REFRENDOS PARA 2016\n2","COMPROMETIDO POR\nDEVENGAR\n3","ACTIVOS DIFERIDOS\nDEL EJERCICIO EN\nCURSO\n4","ECONOMÍAS Y/O\nAHORROS\n5= (1-2-3-4)"]
["1A01",{"$f":"INDEX(FUENTE_FINANCIAMIENTO_CONCEPTO,MATCH(A4,FUENTE_FINANCIAMIENTO,0))","v":{"$error":"#NAME?"}},{"$f":"SUMIF(EP01_FF,A4,EP01_SUBEJERCICIO)","v":{"$error":"#NAME?"}},null,null,null,{"$f":"C4-D4-E4-F4","v":{"$error":"#NAME?"}}]
["2011",{"$error":"#NAME?"},{"$error":"#NAME?"},null,null,null,{"$f":"C5-D5-E5-F5","v":{"$error":"#NAME?"}}]
["5811",{"$error":"#NAME?"},{"$error":"#NAME?"},null,null,405203297.56,{"$error":"#NAME?"}]
["5813",{"$error":"#NAME?"},{"$error":"#NAME?"},null,null,null,{"$error":"#NAME?"}]
["5814",{"$error":"#NAME?"},{"$error":"#NAME?"},null,null,null,{"$error":"#NAME?"}]
["5933",{"$error":"#NAME?"},{"$error":"#NAME?"},null,null,null,{"$error":"#NAME?"}]
["TOTALES",null,{"$f":"SUM(C4:C9)","v":{"$error":"#NAME?"}},{"$f":"SUM(D4:D9)","v":0},0,405203297.56,{"$error":"#NAME?"}]
[]
["1000",{"$f":"VLOOKUP(INDEX(EP08_CAPITULO,MATCH($A12,EP08_CAPITULO,0)),EP08_1_PRESUPUESTO,2,FALSE)","v":{"$error":"#NAME?"}},{"$f":"SUMIF(EP01_GASTO,$A12,EP01_SUBEJERCICIO)","v":{"$error":"#NAME?"}},null,null,405203297.56,{"$f":"C12-D12-E12-F12","v":{"$error":"#NAME?"}}]
["2000",{"$f":"VLOOKUP(INDEX(EP08_CAPITULO,MATCH($A13,EP08_CAPITULO,0)),EP08_1_PRESUPUESTO,2,FALSE)","v":{"$error":"#NAME?"}},{"$error":"#NAME?"},null,null,null,{"$error":"#NAME?"}]
["3000",{"$f":"VLOOKUP(INDEX(EP08_CAPITULO,MATCH($A14,EP08_CAPITULO,0)),EP08_1_PRESUPUESTO,2,FALSE)","v":{"$error":"#NAME?"}},{"$error":"#NAME?"},null,null,null,{"$error":"#NAME?"}]
["4000",{"$f":"VLOOKUP(INDEX(EP08_CAPITULO,MATCH($A15,EP08_CAPITULO,0)),EP08_1_PRESUPUESTO,2,FALSE)","v":{"$error":"#NAME?"}},{"$error":"#NAME?"},null,null,null,{"$error":"#NAME?"}]
["5000",{"$f":"VLOOKUP(INDEX(EP08_CAPITULO,MATCH($A16,EP08_CAPITULO,0)),EP08_2_PRESUPUESTO,2,FALSE)","v":{"$error":"#NAME?"}},{"$error":"#NAME?"},null,null,null,{"$error":"#NAME?"}]
["9000",{"$f":"VLOOKUP(INDEX(EP08_CAPITULO,MATCH($A17,EP08_CAPITULO,0)),EP08_1_PRESUPUESTO,2,FALSE)","v":{"$error":"#NAME?"}},{"$error":"#NAME?"},null,null,null,{"$error":"#NAME?"}]
["TOTALES",null,{"$f":"SUM(C12:C17)","v":{"$error":"#NAME?"}},{"$f":"SUM(D12:D17)","v":0},0,405203297.56,{"$error":"#NAME?"}]
[null,null,null,null,null,null,"Anexo 1"]
["NOTA"]
[null,"El saldo ($365,867,917.35)  son recursos pagados de gastos personales sin presupuesto aprobado, mismos que serán solicitados para la regularización en el Ejercicio Fiscal 2017."]

{"sheet":"Anexo 2","index":4,"n_rows":21,"n_cols":8,"rows_kept":21,"cut":false,"hidden":true,"merged":[[0,0,0,7],[2,0,2,1]]}
["INTEGRACIÓN DE LAS ECONOMÍAS Y/O AHORROS PRESUPUESTALES\nAL CIERRE DEL EJERCICIO 2016"]
["2111 111 0 SECRETARÍA DE HACIENDA"]
["CONCEPTO",null,"DISPONIBLE\nFINANCIERO\n1","REFRENDOS PARA 2016\n2","COMPROMETIDO POR\nDEVENGAR\n3","ACTIVOS DIFERIDOS\nDEL EJERCICIO EN\nCURSO\n4","RECURSOS\nAUTORIZADOS NO\nRADICADOS\n5","ECONOMÍAS Y/O\nAHORROS\n6= (1-2-3-4-5)"]
["1A01",{"$f":"INDEX(FUENTE_FINANCIAMIENTO_CONCEPTO,MATCH(A4,FUENTE_FINANCIAMIENTO,0))","v":{"$error":"#NAME?"}},{"$f":"SUMIF(EP01_FF,A4,EP01_DISPONIBLE_FINANCIERO)","v":{"$error":"#NAME?"}},null,null,null,null,{"$f":"C4-D4-E4-F4-G4","v":{"$error":"#NAME?"}}]
["2011",{"$error":"#NAME?"},{"$error":"#NAME?"},null,null,null,null,{"$f":"C5-D5-E5-F5-G5","v":{"$error":"#NAME?"}}]
["5811",{"$error":"#NAME?"},{"$error":"#NAME?"},null,null,405203297.56,null,{"$error":"#NAME?"}]
["5813",{"$error":"#NAME?"},{"$error":"#NAME?"},null,null,null,null,{"$error":"#NAME?"}]
["5814",{"$error":"#NAME?"},{"$error":"#NAME?"},null,null,null,null,{"$error":"#NAME?"}]
["5933",{"$error":"#NAME?"},{"$error":"#NAME?"},null,null,null,null,{"$error":"#NAME?"}]
["TOTALES",null,{"$f":"SUM(C4:C9)","v":{"$error":"#NAME?"}},{"$f":"SUM(D4:D9)","v":0},0,405203297.56,0,{"$error":"#NAME?"}]
[]
["1000",{"$f":"VLOOKUP(INDEX(EP08_CAPITULO,MATCH($A12,EP08_CAPITULO,0)),EP08_1_PRESUPUESTO,2,FALSE)","v":{"$error":"#NAME?"}},{"$f":"SUMIF(EP01_GASTO,$A12,EP01_DISPONIBLE_FINANCIERO)","v":{"$error":"#NAME?"}},null,null,405203297.56,null,{"$f":"C12-D12-E12-F12-G12","v":{"$error":"#NAME?"}}]
["2000",{"$f":"VLOOKUP(INDEX(EP08_CAPITULO,MATCH($A13,EP08_CAPITULO,0)),EP08_1_PRESUPUESTO,2,FALSE)","v":{"$error":"#NAME?"}},{"$error":"#NAME?"},null,null,null,null,{"$error":"#NAME?"}]
["3000",{"$f":"VLOOKUP(INDEX(EP08_CAPITULO,MATCH($A14,EP08_CAPITULO,0)),EP08_1_PRESUPUESTO,2,FALSE)","v":{"$error":"#NAME?"}},{"$error":"#NAME?"},null,null,null,null,{"$error":"#NAME?"}]
["4000",{"$f":"VLOOKUP(INDEX(EP08_CAPITULO,MATCH($A15,EP08_CAPITULO,0)),EP08_1_PRESUPUESTO,2,FALSE)","v":{"$error":"#NAME?"}},{"$error":"#NAME?"},null,null,null,null,{"$error":"#NAME?"}]
["5000",{"$f":"VLOOKUP(INDEX(EP08_CAPITULO,MATCH($A16,EP08_CAPITULO,0)),EP08_2_PRESUPUESTO,2,FALSE)","v":{"$error":"#NAME?"}},{"$error":"#NAME?"},null,null,null,null,{"$error":"#NAME?"}]
["9000",{"$f":"VLOOKUP(INDEX(EP08_CAPITULO,MATCH($A17,EP08_CAPITULO,0)),EP08_1_PRESUPUESTO,2,FALSE)","v":{"$error":"#NAME?"}},{"$error":"#NAME?"},null,null,null,null,{"$error":"#NAME?"}]
["TOTALES",null,{"$f":"SUM(C12:C17)","v":{"$error":"#NAME?"}},{"$f":"SUM(D12:D17)","v":0},0,405203297.56,0,{"$error":"#NAME?"}]
[null,null,null,null,null,null,null,"Anexo 2"]
["NOTA"]
[null,"El saldo ($364,339,128.43)  son recursos pagados de gastos personales sin presupuesto aprobado, mismos que serán solicitados para la regularización en el Ejercicio Fiscal 2017."]

{"sheet":"Gto Sector Púb Clasif Econ","index":5,"n_rows":21,"n_cols":14,"rows_kept":21,"cut":false,"hidden":true,"merged":[[0,0,0,11],[2,2,2,7],[2,8,2,11],[1,0,1,11],[2,0,4,1],[3,8,4,8],[3,9,4,9],[3,10,4,10],[3,11,4,11]]}
["GASTO DEL SECTOR PÚBLICO PRESUPUESTARIO EN CLASIFICACIÓN ECONÓMICA\nDEL 1 DE ENERO AL 31 DE MARZO DE 2017"]
["2111 111 0 SECRETARÍA DE HACIENDA"]
["CONCEPTO / CAPÍTULO DE GASTO",null,"PRESUPUESTO DE EGRESOS",null,null,null,null,null,"VARIACIÓN DEL DEVENGADO RESPECTO AL:"]
[null,null,"APROBADO\nANUAL","MODIFICADO","COMPROMETIDO","DEVENGADO","EJERCIDO","PAGADO","APROBADO\nANUAL","%","MODIFICADO","%"]
[null,null,1,2,3,4,5,6]
[null,"TOTAL",{"$f":"C7+C20","v":{"$error":"#NAME?"}},{"$error":"#NAME?"},{"$error":"#NAME?"},{"$error":"#NAME?"},{"$error":"#NAME?"},{"$error":"#NAME?"},{"$f":"F6-C6","v":{"$error":"#NAME?"}},{"$f":"IF(C6=0,\"N/A\",I6/C6*100)","v":{"$error":"#NAME?"}},{"$f":"F6-D6","v":{"$error":"#NAME?"}},{"$f":"K6/D6*100","v":{"$error":"#NAME?"}}]
[null,"GASTO PROGRAMABLE",{"$f":"C8+C16","v":{"$error":"#NAME?"}},{"$error":"#NAME?"},{"$error":"#NAME?"},{"$error":"#NAME?"},{"$error":"#NAME?"},{"$error":"#NAME?"},{"$f":"F7-C7","v":{"$error":"#NAME?"}},{"$error":"#NAME?"},{"$f":"F7-D7","v":{"$error":"#NAME?"}},{"$f":"K7/D7*100","v":{"$error":"#NAME?"}}]
["1",{"$f":"UPPER(VLOOKUP(INDEX(EP08_CAPITULO,MATCH($A8,EP08_CAPITULO,0)),EP08_1_PRESUPUESTO,2,FALSE))","v":{"$error":"#NAME?"}},{"$f":"SUM(C9,C10,C13)","v":{"$error":"#NAME?"}},{"$f":"SUM(D9,D10,D13)","v":{"$error":"#NAME?"}},{"$f":"SUM(E9,E10,E13)","v":{"$error":"#NAME?"}},{"$error":"#NAME?"},{"$error":"#NAME?"},{"$error":"#NAME?"},{"$error":"#NAME?"},{"$error":"#NAME?"},{"$error":"#NAME?"},{"$error":"#NAME?"}]
["1000",{"$f":"VLOOKUP(INDEX(EP08_CAPITULO,MATCH($A9,EP08_CAPITULO,0)),EP08_1_PRESUPUESTO,2,FALSE)","v":{"$error":"#NAME?"}},{"$f":"SUM(IF(LEFT($A9,1)=LEFT(EP01_GASTO,1),IF(EP01_TG=$N9,EP01_PRESUPUESTO_APROBADO)))","v":{"$error":"#NAME?"}},{"$f":"SUM(IF(LEFT($A9,1)=LEFT(EP01_GASTO,1),IF(EP01_TG=$N9,EP01_PRESUPUESTO_MODIFICADO)))","v":{"$error":"#NAME?"}},{"$f":"SUM(IF(LEFT($A9,1)=LEFT(EP01_GASTO,1),IF(EP01_TG=$N9,EP01_PRESUPUESTO_COMPROMETIDO)))","v":{"$error":"#NAME?"}},{"$f":"SUM(IF(LEFT($A9,1)=LEFT(EP01_GASTO,1),IF(EP01_TG=$N9,EP01_PRESUPUESTO_DEVENGADO)))","v":{"$error":"#NAME?"}},{"$f":"SUM(IF(LEFT($A9,1)=LEFT(EP01_GASTO,1),IF(EP01_TG=$N9,EP01_PRESUPUESTO_EJERCIDO)))","v":{"$error":"#NAME?"}},{"$f":"SUM(IF(LEFT($A9,1)=LEFT(EP01_GASTO,1),IF(EP01_TG=$N9,EP01_PRESUPUESTO_PAGADO)))","v":{"$error":"#NAME?"}},{"$error":"#NAME?"},{"$error":"#NAME?"},{"$error":"#NAME?"},{"$error":"#NAME?"},null,"1"]
[null,"Gasto de Operación",{"$f":"SUM(C11:C12)","v":{"$error":"#NAME?"}},{"$error":"#NAME?"},{"$error":"#NAME?"},{"$error":"#NAME?"},{"$error":"#NAME?"},{"$error":"#NAME?"},{"$error":"#NAME?"},{"$error":"#NAME?"},{"$error":"#NAME?"},{"$error":"#NAME?"}]
["2000",{"$error":"#NAME?"},{"$f":"SUM(IF(LEFT($A11,1)=LEFT(EP01_GASTO,1),IF(EP01_TG=$N11,EP01_PRESUPUESTO_APROBADO)))","v":{"$error":"#NAME?"}},{"$f":"SUM(IF(LEFT($A11,1)=LEFT(EP01_GASTO,1),IF(EP01_TG=$N11,EP01_PRESUPUESTO_MODIFICADO)))","v":{"$error":"#NAME?"}},{"$f":"SUM(IF(LEFT($A11,1)=LEFT(EP01_GASTO,1),IF(EP01_TG=$N11,EP01_PRESUPUESTO_COMPROMETIDO)))","v":{"$error":"#NAME?"}},{"$f":"SUM(IF(LEFT($A11,1)=LEFT(EP01_GASTO,1),IF(EP01_TG=$N11,EP01_PRESUPUESTO_DEVENGADO)))","v":{"$error":"#NAME?"}},{"$f":"SUM(IF(LEFT($A11,1)=LEFT(EP01_GASTO,1),IF(EP01_TG=$N11,EP01_PRESUPUESTO_EJERCIDO)))","v":{"$error":"#NAME?"}},{"$f":"SUM(IF(LEFT($A11,1)=LEFT(EP01_GASTO,1),IF(EP01_TG=$N11,EP01_PRESUPUESTO_PAGADO)))","v":{"$error":"#NAME?"}},{"$error":"#NAME?"},{"$error":"#NAME?"},{"$error":"#NAME?"},{"$error":"#NAME?"},null,"1"]
["3000",{"$error":"#NAME?"},{"$f":"SUM(IF(LEFT($A12,1)=LEFT(EP01_GASTO,1),IF(EP01_TG=$N12,EP01_PRESUPUESTO_APROBADO)))","v":{"$error":"#NAME?"}},{"$f":"SUM(IF(LEFT($A12,1)=LEFT(EP01_GASTO,1),IF(EP01_TG=$N12,EP01_PRESUPUESTO_MODIFICADO)))","v":{"$error":"#NAME?"}},{"$f":"SUM(IF(LEFT($A12,1)=LEFT(EP01_GASTO,1),IF(EP01_TG=$N12,EP01_PRESUPUESTO_COMPROMETIDO)))","v":{"$error":"#NAME?"}},{"$f":"SUM(IF(LEFT($A12,1)=LEFT(EP01_GASTO,1),IF(EP01_TG=$N12,EP01_PRESUPUESTO_DEVENGADO)))","v":{"$error":"#NAME?"}},{"$f":"SUM(IF(LEFT($A12,1)=LEFT(EP01_GASTO,1),IF(EP01_TG=$N12,EP01_PRESUPUESTO_EJERCIDO)))","v":{"$error":"#NAME?"}},{"$f":"SUM(IF(LEFT($A12,1)=LEFT(EP01_GASTO,1),IF(EP01_TG=$N12,EP01_PRESUPUESTO_PAGADO)))","v":{"$error":"#NAME?"}},{"$f":"F12-C12","v":{"$error":"#NAME?"}},{"$error":"#NAME?"},{"$error":"#NAME?"},{"$error":"#NAME?"},null,"1"]
[null,"Otras erogaciones",{"$f":"SUM(C14:C15)","v":{"$error":"#NAME?"}},{"$f":"SUM(D14:D15)","v":{"$error":"#NAME?"}},{"$error":"#NAME?"},{"$error":"#NAME?"},{"$error":"#NAME?"},{"$error":"#NAME?"},{"$error":"#NAME?"},{"$error":"#NAME?"},{"$error":"#NAME?"},{"$error":"#NAME?"}]
["4000",{"$error":"#NAME?"},{"$f":"SUM(IF(LEFT($A14,1)=LEFT(EP01_GASTO,1),IF(EP01_TG=$N14,EP01_PRESUPUESTO_APROBADO)))","v":{"$error":"#NAME?"}},{"$f":"SUM(IF(LEFT($A14,1)=LEFT(EP01_GASTO,1),IF(EP01_TG=$N14,EP01_PRESUPUESTO_MODIFICADO)))","v":{"$error":"#NAME?"}},{"$f":"SUM(IF(LEFT($A14,1)=LEFT(EP01_GASTO,1),IF(EP01_TG=$N14,EP01_PRESUPUESTO_COMPROMETIDO)))","v":{"$error":"#NAME?"}},{"$f":"SUM(IF(LEFT($A14,1)=LEFT(EP01_GASTO,1),IF(EP01_TG=$N14,EP01_PRESUPUESTO_DEVENGADO)))","v":{"$error":"#NAME?"}},{"$f":"SUM(IF(LEFT($A14,1)=LEFT(EP01_GASTO,1),IF(EP01_TG=$N14,EP01_PRESUPUESTO_EJERCIDO)))","v":{"$error":"#NAME?"}},{"$f":"SUM(IF(LEFT($A14,1)=LEFT(EP01_GASTO,1),IF(EP01_TG=$N14,EP01_PRESUPUESTO_PAGADO)))","v":{"$error":"#NAME?"}},{"$error":"#NAME?"},{"$error":"#NAME?"},{"$error":"#NAME?"},{"$error":"#NAME?"},null,"1"]
["7000",{"$error":"#NAME?"},{"$f":"SUM(IF(LEFT($A15,1)=LEFT(EP01_GASTO,1),IF(EP01_TG=$N15,EP01_PRESUPUESTO_APROBADO)))","v":{"$error":"#NAME?"}},{"$f":"SUM(IF(LEFT($A15,1)=LEFT(EP01_GASTO,1),IF(EP01_TG=$N15,EP01_PRESUPUESTO_MODIFICADO)))","v":{"$error":"#NAME?"}},{"$f":"SUM(IF(LEFT($A15,1)=LEFT(EP01_GASTO,1),IF(EP01_TG=$N15,EP01_PRESUPUESTO_COMPROMETIDO)))","v":{"$error":"#NAME?"}},{"$f":"SUM(IF(LEFT($A15,1)=LEFT(EP01_GASTO,1),IF(EP01_TG=$N15,EP01_PRESUPUESTO_DEVENGADO)))","v":{"$error":"#NAME?"}},{"$f":"SUM(IF(LEFT($A15,1)=LEFT(EP01_GASTO,1),IF(EP01_TG=$N15,EP01_PRESUPUESTO_EJERCIDO)))","v":{"$error":"#NAME?"}},{"$f":"SUM(IF(LEFT($A15,1)=LEFT(EP01_GASTO,1),IF(EP01_TG=$N15,EP01_PRESUPUESTO_PAGADO)))","v":{"$error":"#NAME?"}},{"$f":"F15-C15","v":{"$error":"#NAME?"}},{"$error":"#NAME?"},{"$error":"#NAME?"},{"$f":"IF(D15=0,0,SUM(K15/D15*100))","v":{"$error":"#NAME?"}},null,"1"]
[null,"GASTO DE CAPITAL",{"$f":"SUM(C17)","v":{"$error":"#NAME?"}},{"$f":"SUM(D17)","v":{"$error":"#NAME?"}},{"$error":"#NAME?"},{"$error":"#NAME?"},{"$error":"#NAME?"},{"$error":"#NAME?"},{"$error":"#NAME?"},{"$error":"#NAME?"},{"$error":"#NAME?"},{"$error":"#NAME?"}]
[null,"Inversión Pública",{"$f":"SUM(C18:C19)","v":{"$error":"#NAME?"}},{"$error":"#NAME?"},{"$error":"#NAME?"},{"$error":"#NAME?"},{"$error":"#NAME?"},{"$error":"#NAME?"},{"$error":"#NAME?"},{"$error":"#NAME?"},{"$error":"#NAME?"},{"$error":"#NAME?"}]
["5000",{"$f":"VLOOKUP(INDEX(EP08_CAPITULO,MATCH($A18,EP08_CAPITULO,0)),EP08_2_PRESUPUESTO,2,FALSE)","v":{"$error":"#NAME?"}},{"$f":"SUM(IF(LEFT($A18,1)=LEFT(EP01_GASTO,1),IF(EP01_TG=$N18,EP01_PRESUPUESTO_APROBADO)))","v":{"$error":"#NAME?"}},{"$f":"SUM(IF(LEFT($A18,1)=LEFT(EP01_GASTO,1),IF(EP01_TG=$N18,EP01_PRESUPUESTO_MODIFICADO)))","v":{"$error":"#NAME?"}},{"$f":"SUM(IF(LEFT($A18,1)=LEFT(EP01_GASTO,1),IF(EP01_TG=$N18,EP01_PRESUPUESTO_COMPROMETIDO)))","v":{"$error":"#NAME?"}},{"$f":"SUM(IF(LEFT($A18,1)=LEFT(EP01_GASTO,1),IF(EP01_TG=$N18,EP01_PRESUPUESTO_DEVENGADO)))","v":{"$error":"#NAME?"}},{"$f":"SUM(IF(LEFT($A18,1)=LEFT(EP01_GASTO,1),IF(EP01_TG=$N18,EP01_PRESUPUESTO_EJERCIDO)))","v":{"$error":"#NAME?"}},{"$f":"SUM(IF(LEFT($A18,1)=LEFT(EP01_GASTO,1),IF(EP01_TG=$N18,EP01_PRESUPUESTO_PAGADO)))","v":{"$error":"#NAME?"}},{"$f":"F18-C18","v":{"$error":"#NAME?"}},{"$error":"#NAME?"},{"$error":"#NAME?"},{"$error":"#NAME?"},null,"2"]
["7000",{"$f":"VLOOKUP(INDEX(EP08_CAPITULO,MATCH($A19,EP08_CAPITULO,0)),EP08_2_PRESUPUESTO,2,FALSE)","v":{"$error":"#NAME?"}},{"$f":"SUM(IF(LEFT($A19,1)=LEFT(EP01_GASTO,1),IF(EP01_TG=$N19,EP01_PRESUPUESTO_APROBADO)))","v":{"$error":"#NAME?"}},{"$f":"SUM(IF(LEFT($A19,1)=LEFT(EP01_GASTO,1),IF(EP01_TG=$N19,EP01_PRESUPUESTO_MODIFICADO)))","v":{"$error":"#NAME?"}},{"$f":"SUM(IF(LEFT($A19,1)=LEFT(EP01_GASTO,1),IF(EP01_TG=$N19,EP01_PRESUPUESTO_COMPROMETIDO)))","v":{"$error":"#NAME?"}},{"$f":"SUM(IF(LEFT($A19,1)=LEFT(EP01_GASTO,1),IF(EP01_TG=$N19,EP01_PRESUPUESTO_DEVENGADO)))","v":{"$error":"#NAME?"}},{"$f":"SUM(IF(LEFT($A19,1)=LEFT(EP01_GASTO,1),IF(EP01_TG=$N19,EP01_PRESUPUESTO_EJERCIDO)))","v":{"$error":"#NAME?"}},{"$f":"SUM(IF(LEFT($A19,1)=LEFT(EP01_GASTO,1),IF(EP01_TG=$N19,EP01_PRESUPUESTO_PAGADO)))","v":{"$error":"#NAME?"}},{"$error":"#NAME?"},{"$error":"#NAME?"},{"$error":"#NAME?"},{"$error":"#NAME?"},null,"2"]
["991","GASTO NO PROGRAMABLE",{"$f":"C21","v":{"$error":"#NAME?"}},{"$error":"#NAME?"},{"$error":"#NAME?"},{"$error":"#NAME?"},{"$error":"#NAME?"},{"$error":"#NAME?"},{"$error":"#NAME?"},{"$error":"#NAME?"},{"$error":"#NAME?"},{"$error":"#NAME?"}]
["9000",{"$f":"VLOOKUP(INDEX(EP08_CAPITULO,MATCH($A20,EP08_CAPITULO,0)),EP08_1_PRESUPUESTO,2,FALSE)&\" \"&\"(Gasto Corriente)\"","v":{"$error":"#NAME?"}},{"$f":"SUM(IF(LEFT($A21,1)=LEFT(EP01_GASTO,1),IF(EP01_TG=$N21,EP01_PRESUPUESTO_APROBADO)))","v":{"$error":"#NAME?"}},{"$f":"SUM(IF(LEFT($A21,1)=LEFT(EP01_GASTO,1),IF(EP01_TG=$N21,EP01_PRESUPUESTO_MODIFICADO)))","v":{"$error":"#NAME?"}},{"$f":"SUM(IF(LEFT($A21,1)=LEFT(EP01_GASTO,1),IF(EP01_TG=$N21,EP01_PRESUPUESTO_COMPROMETIDO)))","v":{"$error":"#NAME?"}},{"$f":"SUM(IF(LEFT($A21,1)=LEFT(EP01_GASTO,1),IF(EP01_TG=$N21,EP01_PRESUPUESTO_DEVENGADO)))","v":{"$error":"#NAME?"}},{"$f":"SUM(IF(LEFT($A21,1)=LEFT(EP01_GASTO,1),IF(EP01_TG=$N21,EP01_PRESUPUESTO_EJERCIDO)))","v":{"$error":"#NAME?"}},{"$f":"SUM(IF(LEFT($A21,1)=LEFT(EP01_GASTO,1),IF(EP01_TG=$N21,EP01_PRESUPUESTO_PAGADO)))","v":{"$error":"#NAME?"}},{"$error":"#NAME?"},{"$error":"#NAME?"},{"$error":"#NAME?"},{"$error":"#NAME?"},null,"1"]

{"sheet":"JUSTIFICACIÓN (CLASIF ECON)","index":6,"n_rows":31,"n_cols":1,"rows_kept":31,"cut":false,"hidden":true,"merged":[]}
["JUSTIFICACIÓN (GASTO DEL SECTOR PÚBLICO PRESUPUESTARIO EN CLASIFICACIÓN ECONOMICA)\nDel 1 de Enero al 30 de Junio de 2016"]
["2111 111 0 SECRETARÍA DE HACIENDA"]
["Servicios Personales"]
["La variación del devengado con el aprobado anual de ( $335,225,659.88) se debe a que no se ejerció en su totalidad los meses de mayo y junio en virtud que los recursos ministrados fueron insuficientes, los que serán devengados en el siguiente trimestre."]
[]
["Materiales y Suministros"]
["La variación de $568,532.94 que se genera en el gasto del sector público entre el presupuesto devengado con el aprobado anual, se debe a que los materiales que requirieron los diferentes Órganos Administrativos, como son: materiales y útiles de oficina , consumibles para el procesamiento, en equipos y bienes informáticos, productos alimenticios para personas, material de limpieza, material eléctrico y electrónico, combustibles para vehículos operativos de la Subsecretaría de Ingresos, Delegaciones de Haciendas, y Módulos de Gobierno Express para una mejor atención al público , para obtener una mejor recaudación por las contribuciones hacendarias, refacciones y accesorios menores de equipo de transporte de los vehículos operativos de la Secretaría."]
[]
["Servicios Generales"]
["La variación de $77,359,905.64 que se genera en el gasto del sector público entre el presupuesto devengado con el aprobado anual, se debe a que se solicitaron recursos para arrendamiento de espectaculares, materiales, y equipo para escenografías, gastos de ceremonial, congresos y convenciones del proyecto de Gubernatura en los eventos del C. Gobernador y la visita de su Santidad el Papa Francisco, servicio de digitalización de carteles, mantas y rótulos publicitarios para concientizar a los contribuyentes para el pago del impuesto de tenencia vehicular; rentas de espectaculares, servicio de mantenimiento de páginas web y adquisición de licencias de programas informáticos."]
[]
["Transferencias, Asignaciones, Subsidios y Otras Ayudas."]
["La variación de $46,875,873.54 Que se genero en el gasto del sector público entre el presupuesto devengado con el aprobado anual se debe a las ayudas sociales aportaciones al INDETEC (Instituto para el Desarrollo Tecnológico de las Haciendas Públicas ) para cubrir la aportación que le corresponde al Estado de Chiapas, apoyo a la población estudiantil con otorgamiento de playeras, subsidio por bebidas alcohólicas a establecimientos, pago de energía eléctrica a la Iglesia San Marcos, Albergue Infantil, renta de edificio de la Sala Regional Chiapas-Tabasco, y apoyo a la colecta nacional de la Cruz Roja."]
[]
["Inversiones Financieras y Otras Provisiones."]
["En este rubro la variación de ($22,810,787.20) es en virtud que los recursos fueron traspasados para el pago de Publicaciones Oficiales y la diferencia corresponde al Fideicomiso Irrevocable de Administración y Pago, que serán devengados en cuanto lo solicite la Dirección de Control Financiero de la Tesorería Única."]
[]
["Capital Humano (Servicios Generales)"]
["La variación de $28,214,962.29 que existe entre el presupuesto devengado con el aprobado anual, corresponde a recursos que fueron devengados para el pago de asesorías a servidores públicos, servicios de especialidad para la generación de la información financiera trimestral de los empréstitos contratados con las instituciones financieras."]
[]
["Inversión Pública (Servicios Generales)"]
["La variación que presenta de ($1,831,065.60) es por reducción de recursos presupuestarios con sustento en el decreto en el que se crea la Oficialía Mayor del Estado de Chiapas, como un organismo auxiliar del Poder Ejecutivo del Estado , publicado en el Periódico Oficial Número 226-3a Sección y con fundamento en el Articulo 357 del Código de la Hacienda Pública para el Estado de Chiapas."]
[]
["Inversión Pública (Bienes Muebles, Inmuebles e Intangibles)"]
["La variación de ($1,795,960.85) corresponde a la adquisición de mobiliario, bienes informáticos, con la finalidad de equipar un lugar para la operación con los bienes informáticos y con el servicio de Internet a 100 Mb con IP fija para asegurar la operatividad del SIAHE-AC 2016, mediante la información que generan los 92 Organismos Públicos, equipos de administración, equipo de administración menor, maquinaria y equipo industrial, sistema de aire acondicionado, calefacción y refrigeración industrial y comercial para los diferentes Órganos Administrativos de esta Secretaría de Hacienda."]
[]
["Inversión Pública (Inversiones Financieras y Otras Provisiones)"]
["La variación que presenta de ($361,274.95) son recursos que corresponden al fideicomiso \"Fondo Metropolitano\", beneficiando a los Habitantes de la Zona Metropolitana de Tuxtla Gutiérrez, que serán devengados en cuanto lo requieran."]
[]
["Deuda Pública (ADEFAS)."]
["La variación que presenta de $5,721,991.91 fueron gastos del ejercicio anterior que no estaban contemplados en el presupuesto aprobado, por lo que se solicito para el pago de publicaciones oficiales del C. Gobernador."]

{"sheet":"Jus. Gto Sector Púb Clasif Econ","index":7,"n_rows":19,"n_cols":1,"rows_kept":19,"cut":false,"hidden":true,"merged":[]}
["JUSTIFICACIÓN (GASTO DEL SECTOR PÚBLICO PRESUPUESTARIO EN CLASIFICACIÓN ECONÓMICA)\nDEL 1 DE ENERO AL 31 DE MARZO DE 2017"]
["2111 111 0 SECRETARÍA DE HACIENDA"]
["Gasto Corriente"]
["1000 Servicios Personales; la variación del devengado con el aprobado anual de ($472,135,169.79) que se generan en el gasto del sector público se debe a honorarios y honorarios especiales, aportaciones al ISSTECH y ISSTECH (docente), cuotas para el seguro de vida, prestaciones de retiro, estímulos al personal y de productividad."]
[]
["2000 Materiales y Suministros; la variación de ($14,796,349.55) que se genera en el gasto del sector público entre el presupuesto devengado con el aprobado anual, se debe a lo relacionado con material y útiles de oficina, materiales y útiles consumibles para el procesamiento en equipo y bienes informáticos, servicio de suscripción e información, productos alimenticios para personas, combustible, refacciones y accesorios para equipo de computo y telecomunicaciones, refacciones y accesorios menores de equipo de transporte."]
[]
["3000 Servicios Generales; la variación de ($70,769,219.67) que se genera en el gasto del sector público entre el presupuesto devengado con el aprobado anual, se debe a los recursos de servicio de energía eléctrica, arrendamiento de edificios y locales, servicios de vigilancia, servicios integrales, servicios bancarios y financieros, mantenimiento y conservación de mobiliario, así como equipo de administración."]
[""]
["4000 Transferencias, Asignaciones, Subsidios y Otras Ayudas; la variación de ($8,250,852.79) que se genera en el gasto del sector público entre el presupuesto devengado con el aprobado anual, se debe a las ayudas a organizaciones y personas (ayudas culturales y sociales) y públicas, así como la colecta de la Cruz Roja Mexicana 2017."]
[""]
["7000 Inversiones Financieras y Otras Provisiones; en este rubro, la variación de ($22,268,476.30) entre el presupuesto devengado con el aprovado anual, se debe a la aportación al fideicomiso público (Banobras)."]
[""]
["Inversión Pública"]
["5000 Bienes Muebles, Inmuebles e Intangibles; la variación de $110,200.02 corresponde a la adquisición de equipos y aparatos de comunicaciones y telecomunicaciones, equipos y aparatos menores de comunicaciones y telecomunicaciones de la Oficina de Gubernatura."]
[""]
["7000 Inversiones Financieras y Otras Provisiones; la variación del devengado con el aprobado anual de  ($27,999,089.00) corresponde a la aportación del fideicomiso público Fondo Metropolitano, financiado con recursos federales provenientes del Ramo 23."]
[]
["9000 Deuda Pública (ADEFAS); la variación que presenta de $17,118,805.10 son recursos para el pago de servicios materiales y suministros, así como también por servicios generales (delegaciones) no efectuados por Tesorería."]